Cogmind - Beta 13 @@@ ROGUE MODE // 2024.04.13 @ 10:04:05 Player: arcadio rl Result: Destroyed by G-47 Trooper with Particle Gun Performance ------------- Evolutions (0) 0 Regions Visited (2) 400 Robots Destroyed (17) 85 Value Destroyed (272) 272 Prototype IDs (0) 0 Alien Tech Used (0) 0 Bonus (0) 0 TOTAL SCORE: 757 Bonus ------- None Cogmind --------- Core Integrity 0/250 Matter 300/300 Energy 99/100 System Corruption 0% Temperature Cool (9) Movement Rolling (80) Location -10/Mines Parts ------- > --- POWER (1) -------- (None) > --- PROPULSION (2) --- Wheel Flight Unit > --- UTILITY (2) ------ Signal Interpreter Signal Interpreter > --- WEAPON (2) ------- Mining Claw Mining Claw > --- INVENTORY (5) ---- Backup Propulsion I Mining Claw Mining Claw Peak State ------------ > --- POWER ------------ Ion Engine > --- PROPULSION ------- Compact Wheel Compact Wheel > --- UTILITY ---------- Small Storage Unit Tractor Beam > --- WEAPON ----------- Light Assault Rifle Light Assault Rifle > --- INVENTORY -------- Ion Engine Light Treads Light Treads Aluminum Leg Aluminum Leg Compact Wheel Small Laser [Rating: 7] Favorites ----------- Power Light Ion Engine Engine Light Ion Engine Propulsion Flight Unit Wheel Compact Wheel Hover Unit Backup Propulsion I Flight Unit Flight Unit Utility Signal Interpreter Device Seismic Detector Storage Small Storage Unit Processor Signal Interpreter Weapon Mining Claw Ballistic Gun Light Assault Rifle Slashing Weapon Mining Claw Build | -11 -10 -10 ------- Run | Yrd Mat Min Slots Evolved . | . . . Power . | . . . Propulsion . | . . . Utility . | . . . Weapon . | . . . Parts Attached 23 | 8 14 1 Power 3 | 1 2 . Engine 3 | 1 2 . Core . | . . . Reactor . | . . . Propulsion 10 | 2 7 1 Treads . | . . . Leg . | . . . Wheel 5 | 2 2 1 Hover . | . . . Flight 5 | . 5 . Utility 5 | 3 2 . Device 2 | 2 . . Storage 1 | 1 . . Processor 2 | . 2 . Hackware . | . . . Protection . | . . . Artifact . | . . . Weapon 5 | 2 3 . Energy Gun . | . . . Energy Cannon . | . . . Ballistic Gun 3 | 2 1 . Ballistic Cannon . | . . . Launcher . | . . . Special Weapon . | . . . Impact Weapon . | . . . Slashing Weapon 2 | . 2 . Piercing Weapon . | . . . Special Melee Weapon . | . . . Unidentified Prototypes . | . . . Parts Lost 5 | . 3 2 Power 2 | . 1 1 Propulsion 2 | . 1 1 Utility 1 | . 1 . Weapon . | . . . Highest Loss Streak 2 | . 2 1 To Critical Strikes . | . . . Average Slot Usage (%) 93 | . 94 92 Engine 11 | . 13 7 Wheel 8 | . 10 2 Flight 18 | . 15 25 Device 8 | . 10 . Storage 1 | . 2 . Processor 16 | . 12 28 Ballistic Gun 5 | . 7 . Slashing Weapon 22 | . 20 28 Naked Turns . | . . . Heaviest Build 13 | 13 13 7 Greatest Support 32 | 32 32 10 Greatest Overweight (x) 4 | . 4 . Average Overweight (x) . | . . . Largest Inventory Capacity 8 | 8 8 5 Average Capacity 5 | 7 5 5 Most Carried 8 | 8 8 4 Average Carried 4 | 4 5 3 Final Capacity 8 | 8 5 5 Final Carried 8 | 8 4 3 Class Distribution -------------------- 74% | Scavenger-Mutant 25% | Mutant Dominant Class ---------------- Scavenger-Mutant | -10/Materials Scavenger-Mutant | -10/Mines Resources | -11 -10 -10 ----------- Run | Yrd Mat Min Matter Collected 478 | 294 154 30 Remotely 12 | 12 . . Salvage Created 414 | 65 292 57 Parts 35 | 5 29 1 Haulers Intercepted 1 | . 1 . Recyclers Shooed 1 | . 1 . Parts Field Recycled . | . . . Retrieved Matter . | . . . Parts Self-Destructed . | . . . Prevented . | . . . Kills | -11 -10 -10 ------- Run | Yrd Mat Min Combat Hostiles Destroyed 10 | . 8 2 Melee 7 | . 5 2 Guns 3 | . 3 . Classes Destroyed 8 | 2 6 . Worker 1 | . 1 . Builder 1 | . 1 . Tunneler 1 | 1 . . Hauler 1 | . 1 . Recycler 1 | 1 . . Watcher 2 | . 2 . Swarmer 6 | . 6 . Grunt 4 | . 2 2 Best Kill Streak 3 | 1 3 2 Combat Bots Only 3 | . 3 2 Max Kills in Single Turn 1 | 1 1 1 Gunslinging . | . . . Exploded . | . . . Melee 1 | . 1 1 Uniques/NPCs Destroyed . | . . . Combat | -11 -10 -10 -------- Run | Yrd Mat Min Hostile Shots Fired 79 | . 45 34 Missed 27 | . 12 15 Damage Taken 556 | . 291 265 Core 259 | . 135 124 Absorbed by Shields . | . . . Regen/Repaired (Parts) 11 | . 11 . Core Remaining (%) 100 | 100 . . Volleys Fired 34 | 7 27 . Largest 2 | 2 2 . Hottest 40 | 40 40 . Shots Fired 68 | 14 54 . Gun 68 | 14 54 . Cannon . | . . . Launcher . | . . . Special . | . . . Kinetic 68 | 14 54 . Thermal . | . . . Explosive . | . . . Electromagnetic . | . . . Robot Hit Streak 4 | 4 4 . Robot Miss Streak 4 | 1 4 . Penetration Max . | . . . Secondary Targets . | . . . Shots Hit Robots 73 | 10 53 10 Core Hits 26 | 4 19 3 Critical Kills . | . . . Critical Parts Destroyed . | . . . Critical Strikes . | . . . Melee Attacks 65 | . 46 19 Impact . | . . . Slashing 65 | . 46 19 Piercing . | . . . Sneak Attacks 4 | . 3 1 Combat Hostiles . | . . . Follow-up Attacks 7 | . 7 . Damage Inflicted 1222 | 90 874 258 Guns 335 | 90 245 . Cannons . | . . . Explosions . | . . . Melee 887 | . 629 258 Ramming . | . . . Kinetic 335 | 90 245 . Thermal . | . . . Explosive . | . . . Electromagnetic . | . . . Impact . | . . . Slashing 887 | . 629 258 Piercing . | . . . Highest Corruption . | . . . Average Corruption . | . . . Corruption Purged . | . . . Corruption Blocked . | . . . Overload Shots . | . . . Overflow Damage 59 | . 39 20 Projectiles . | . . . Explosions . | . . . Melee 59 | . 39 20 Knockbacks . | . . . Impact . | . . . Kinetic . | . . . Secondary . | . . . Self-Inflicted Damage . | . . . Shots . | . . . Rammed . | . . . Targets Rammed . | . . . Kicked . | . . . Crushed . | . . . Highest Temperature 8 | . 8 . Average Temperature 4 | . 4 . Received Heat Transfer 198 | . 48 150 Siege Activations . | . . . Robots Corrupted . | . . . Combat Hostiles . | . . . Parts Fried . | . . . Impact Corruptions . | . . . Robots Melted . | . . . Combat Hostiles . | . . . Parts Melted . | . . . Heat Transferred . | . . . Parts Sabotaged . | . . . Parts Stolen . | . . . Parts Stripped . | . . . Power Chain Reactions . | . . . Alert | -11 -10 -10 ------- Run | Yrd Mat Min Peak Influence 263 | 10 259 263 Initial 66 | . 6 66 Average 107 | 4 112 154 Maximum Alert Level 1 | . 1 1 Low Security (%) 85 | 100 90 63 Level 1 14 | . 9 36 Level 2 . | . . . Level 3 . | . . . Level 4 . | . . . Level 5 . | . . . High Security . | . . . Max Security . | . . . Squads Dispatched 2 | . 2 . Investigation . | . . . Extermination . | . . . Reinforcement 2 | . 2 . Assault . | . . . Garrison . | . . . Intercept . | . . . Searches Triggered . | . . . Construction Impeded . | . . . Haulers Reinforced . | . . . Active Scanning Responses . | . . . Cargo Convoy Interrupts . | . . . Stealth | -11 -10 -10 --------- Run | Yrd Mat Min Distress Signals 1 | . . 1 Communications Jammed . | . . . Distress Signals . | . . . Times Spotted 30 | . 19 11 Peak Tracking Total 5 | . 5 4 Tactical Retreats 6 | . 4 2 Traps | -11 -10 -10 ------- Run | Yrd Mat Min Traps Triggered . | . . . Indirectly . | . . . Trap Hack Attempts . | . . . Triggered . | . . . Disarmed . | . . . Reprogrammed . | . . . Reused . | . . . Traps Extracted . | . . . Installed . | . . . Triggered . | . . . Machines | -11 -10 -10 ---------- Run | Yrd Mat Min Machines Disabled 1 | . . 1 Max in Single Turn 1 | . . 1 Machines Repaired . | . . . Machines Dismantled . | . . . Machines Sabotaged . | . . . Overloaded Fab Kills . | . . . Hacking | -11 -10 -10 --------- Run | Yrd Mat Min Machines Accessed 6 | . 6 . Terminals 5 | . 5 . Fabricators . | . . . Repair Stations 1 | . 1 . Recycling Units . | . . . Scanalyzers . | . . . Garrison Access . | . . . Total Hacks 18 | . 18 . Successful 13 | . 13 . Failed 5 | . 5 . Catastrophic 1 | . 1 . Database Lockouts . | . . . Manual 4 | . 4 . Terminals 15 | . 15 . Fabricators . | . . . Repair Stations 3 | . 3 . Recycling Units . | . . . Scanalyzers . | . . . Garrison Access . | . . . Terminal Hacks 8 | . 8 . Emergency Access Points 1 | . 1 . Terminal Index 1 | . 1 . Locate Traps 2 | . 2 . Patrol Status 2 | . 2 . Hauler Manifests 1 | . 1 . Zone Layout 1 | . 1 . Fabricator Hacks . | . . . Repair Station Hacks 3 | . 3 . Scan Component 1 | . 1 . Repair 1 | . 1 . Refit 1 | . 1 . Recycling Unit Hacks . | . . . Scanalyzer . | . . . Garrison Access Hacks . | . . . Unauthorized Hacks 2 | . 2 . Terminals 2 | . 2 . Botnet 1 | . 1 . Operators 1 | . 1 . Fabricators . | . . . Repair Stations . | . . . Recycling Units . | . . . Scanalyzers . | . . . Garrison Access . | . . . Data Cores Recovered . | . . . Used . | . . . Hacking Detections 6 | . 6 . Full Trace Events . | . . . Feedback Events . | . . . Feedback Blocked . | . . . Robot Schematics Acquired . | . . . Robots Built . | . . . Authchips . | . . . Time . | . . . Total Robot Build Rating . | . . . Part Schematics Acquired . | . . . Parts Built . | . . . Authchips . | . . . Time . | . . . Total Part Build Rating . | . . . Parts Repaired 1 | . 1 . Time 26 | . 26 . Parts Recycled . | . . . Recycled Matter . | . . . Retrieved Matter . | . . . Retrieved Components . | . . . Parts Scanalyzed . | . . . Part Schematics Acquired . | . . . Parts Damaged . | . . . Bothacking | -11 -10 -10 ------------ Run | Yrd Mat Min Used RIF Installer . | . . . Robots Hacked . | . . . Non-combat . | . . . Combat . | . . . Robot Hacks Applied . | . . . Relay Couplers Released . | . . . Fabnet Peak Effective % . | . . . Robots Rewired . | . . . Allies Hacked . | . . . Hacks Repelled . | . . . Allies | -11 -10 -10 -------- Run | Yrd Mat Min Total Allies . | . . . Largest Group . | . . . Highest-Rated Group . | . . . Highest-Rated Ally . | . . . Total Orders . | . . . Ally Attacks . | . . . Total Damage . | . . . Kills . | . . . Allies Corrupted . | . . . Allies Melted . | . . . Intel | -11 -10 -10 ------- Run | Yrd Mat Min Robot Analysis Total . | . . . Derelict Logs Recovered . | . . . Drone Launches . | . . . Drone Recoveries . | . . . Exploration | -11 -10 -10 ------------- Run | Yrd Mat Min Turns Passed 917 | 118 600 199 Spaces Moved 1005 | 66 576 363 Core 4 | 1 3 . Treads . | . . . Legs . | . . . Wheels 194 | 65 112 17 Hover 2 | . 2 . Flight 805 | . 459 346 Fastest Speed 37 | 50 37 37 Average Speed 50 | 99 52 39 Slowest Speed 280 | 100 280 80 Overloaded Moves . | . . . Propulsion Burnouts . | . . . Robots Hopped . | . . . Cave-ins Triggered . | . . . Exploration Rate (%) 43 | 4 75 51 Regions Visited 2 Branch Regions 1 Pre-discovered Areas . | . . . Known Exits Taken 1 | . 1 . Unknown Exits Taken 1 | 1 . . Scrap Searched . | . . . Spaces Dug 12 | . 10 2 Terrain Destroyed 12 | . 10 2 Melee 12 | . 10 2 Projectile . | . . . AOE . | . . . Terrain Rammed . | . . . Walls Destroyed . | . . . Machines Disabled . | . . . Actions | -11 -10 -10 --------- Run | Yrd Mat Min Total 1240 | 104 752 384 Wait 92 | 14 76 2 Move 1003 | 65 575 363 Hop . | . . . Pick Up 14 | 8 6 . Fast Attach 18 | 8 10 . Attach 2 | . 1 1 Detach 2 | 1 1 . Swap 3 | . 3 . Drop 16 | 1 15 . Fire 34 | 7 27 . Melee 56 | . 38 18 Ram . | . . . Kick . | . . . Crush . | . . . Escape Stasis . | . . . Rewire . | . . . Trap . | . . . Miscellaneous . | . . . Route ------- -11/Scrapyard -10/Materials (discovered 4 exits: [*Mat x2] / *Min x2) -10/Mines History --------- Turn | Location | Event 7 | -11/Scrapyard | Discovered new exit (range 15) 119 | -11/Scrapyard | Entered Materials 291 | -10/Materials | Discovered new exit (range 9) 324 | -10/Materials | Discovered new exit (range 12) 341 | -10/Materials | Discovered new exit (range 12) 427 | -10/Materials | Repaired Flight Unit 504 | -10/Materials | Build established: Scavenger-Mutant 614 | -10/Materials | Core integrity fell below 50% 715 | -10/Materials | Discovered new exit (range 8) 719 | -10/Materials | Identified exit to Mines 719 | -10/Materials | Entered Mines 865 | -10/Mines | Core integrity fell below 20% 918 | -10/Mines | Destroyed by G-47 Trooper with Particle Gun Last Messages --------------- reinforcements to Terminal M003. LOCATION=MINES GOAL=ESCAPE Something is scanning the area. 00720_ K-01 Serf cleans the Pulverizer. 00720_ K-01 Serf collects debris. 00730_ K-01 Serf cleans the Pulverizer. 00731_ Pulverizer disabled. 00732_ K-01 Serf collects debris. 00816_ Lgt. Ion Engine destroyed. 00818_ K-01 Serf collects debris. 00882_ Flight Unit destroyed. 00884_ G-47 Trooper destroyed. 00887_ Acquired 30 matter. 00888_ Destroyed Ion Engine. 00895_ G-34 Mercenary destroyed. 00897_ R-06 Scavenger collects Imp. Heat Sink. 00899_ Sneak attack on T-07 Excavator. 00899_ Destroyed Wheel. 00910_ U-05 Engineer sends out distress signal. Map ----- +----------------------------------------------------+ | ##?# #??## #?### ### ##??????? | | ###### #???# ### ## ##?????? | | ## #??## ### ## ##????? | | ### ## #??# ##?## ### #????? | | ??# ## #??# #???###### #????? | | ### ## #??## #???????# ##????? | | #???#### #???????# #####?????? | | #??????## ##??###### #?????????? | | ##### #???????#####???# #?????????? | | ????# #???????????????# ######?????????? | | ????# ###?????????????# #??????????????? | | ????# ##????????????# #??????????????? | | ???## #????????????# #??????????????? | | ???# #????????????# #??????????????? | | ??## #????????????# #??????????????? | | ### ########??????# #??????????????? | | ## #??????# #?###??????????? | | ### #??????# #? ???????????? | | #?# #??????# #? ???????????? | | """ ##?# """#??????# #? #???????????? | | """ ##??# """#?###### # #???????????? | | """ #???# " "#?# % # #???????????? | | #???# " "#?# ###### ##??????????? | | ## #???# #?# #??### ##?????????? | | ## #???#### ####t#### ####??????? | | ## #??????# g @ #?????? | | #??????# ######## #### #???? | | ## #??##### #??????####????????? #??? | | ## #### ##???????????????????????? | | ## #???????????????????????? | | ####### #???????????????????????? | | #??## ##???????????????????????? | | #??### #????????????????????????? | | #????## #???????????????????????? | | #????# #??????????????????????? | | ## ???# #?????????????????????? | | ??### #?# #?????????????????????? | | ?????# #?# #?????????????????????? | | ??????# #?## ##?????????????????????? | | ??????? #??######??????????????????????? | | ???????? ??????????????????????????????? | | ????????? ?????????????????????????????? | | ?????????? ????????????????????????????? | | ????????????????????????????????????????? | | ????????????????????????????????????????? | | ????????????????????????????????????????? | | ????????????????????????????????????????? | | ????????????????????????????????????????? | | ????????????????????????????????????????? | | ????????????????????????????????????????? | +----------------------------------------------------+ Best States ------------- Heat Dissipation 25 Energy Generation 10 Energy Capacity 250 Matter Stores 300 Matter Capacity 300 Sight Range 16 Terrain Scan Density 10 Evasion (%) 62 Item Schematics ----------------- None Robot Schematics ------------------ None Fabricated ------------ Nothing Alien Tech Used ----------------- None Achievements -------------- None Challenges ------------ None Game ------ Seed HeartSystemCleaver Manual? 0 Play Time 00:17:40 Cumulative 116.5 hours Start 2024.04.13 @ 00:46:25 End 2024.04.13 @ 10:04:05 Sessions 2 Manual Loads 0 Difficulty Rogue Special Mode None Game No. 92 Rogue 92 Adventurer 0 Explorer 0 Win Type - Total 0 Types 0/0/0/0/0/0/0/0/0 Lore% 52 Gallery% 52 Achievement% 41 Wizard Run 0 Options --------- Layout 1 ASCII 0 Keyboard 1 Movement Numpad Keybinds 0 Fullscreen 1 Font 24/Smallcaps Map View 50x35 Zoom Use 0% Tactical HUD 1 Map Filters NONE Filters NONE Steam 1 RUN: 7b92009f-3247-480d-8210-a88d59bd8d88